Cogmind - Beta 16.1 @@@ ROGUE MODE // 2026.04.13 @ 19:55:23 Player: ae Result: Destroyed by P-80 Master with Gamma Rifle Performance ------------- Evolutions (9) 4500 Regions Visited (15) 3000 Robots Destroyed (76) 380 Value Destroyed (1516) 1516 Prototype IDs (55) 1100 Alien Tech Used (0) 0 Bonus (800) 800 TOTAL SCORE: 11296 Bonus ------- Entered DSFs 500 Aligned with FarCom 300 Cogmind --------- Core Integrity 0/1600 Matter 284/300 Energy 100/100 System Corruption 29% Temperature Cool (0) Movement Core (50) Location -1/Access Parts ------- > --- POWER (2) -------- (None) > --- PROPULSION (8) --- (None) > --- UTILITY (13) ----- Enhanced Optical Array Improved Melee Analysis Suite Advanced Target Analyzer Core Analyzer Armor Integrity Analyzer Armor Integrity Analyzer Graphene Brace Graphene Brace > --- WEAPON (2) ------- (None) > --- INVENTORY (5) ---- Experimental Matter Compressor (391) Advanced Launcher Guidance Computer Stasis Canceller Heavy Disruptor Cannon Peak State ------------ > --- POWER ------------ Micro Nuclear Core Micro Nuclear Core > --- PROPULSION ------- Cooled VTOL Module Cooled Cesium-ion Thruster Impulse Thruster Flying Fortress v7 Q-thruster > --- UTILITY ---------- Large Storage Unit Enhanced Optical Array Improved Transmission Jammer Improved Reaction Control System Improved Light Armor Plating Improved Medium Armor Plating Graphene Brace Improved Hacking Suite Improved Hacking Suite Improved Hacking Suite Improved System Shield > --- WEAPON ----------- Precision Grenade Launcher Kinetic Spear > --- INVENTORY -------- Field Propulsion Drive Field Propulsion Drive Q-thruster Improved Cooling System Experimental Matter Compressor Structural Scanner Stasis Canceller ECM Suite Experimental Hacking Suite Experimental Hacking Suite Experimental Hacking Suite Experimental Hacking Suite Advanced Component Analysis Suite Kinetic Spear Kinetic Spear [Rating: 138] Favorites ----------- Power Micro Nuclear Core Engine Improved Ion Engine Power Core Micro Nuclear Core Reactor Micro Antimatter Reactor Propulsion Xenon Bombardment Thruster Treads Light Treads Leg Centrium Leg Hover Unit Improved Antigrav System Flight Unit Xenon Bombardment Thruster Utility Large Storage Unit Device Structural Scanner Storage Large Storage Unit Processor Enhanced Optical Array Hackware Improved Hacking Suite Protection Improved Medium Armor Plating Weapon Kinetic Spear Energy Gun EM Pulse Gun Energy Cannon Enhanced Nova Cannon Ballistic Gun Light Assault Rifle Launcher Precision Grenade Launcher Special Weapon Remote Datajack Slashing Weapon Greatsword Piercing Weapon Kinetic Spear Build | -11 -10 -10 -9 -9 -9 -8 -8 -7 -6 -5 -4 -3 -3 -2 -1 ------- Run | Yrd Mat Min Mat Min Exi Min Mat Fac Fac Fac Fac Res DSF Res Acc Slots Evolved 18 | . . . 2 . . . 2 2 2 2 2 2 . 2 2 Power 1 | . . . . . . . . . . . 1 . . . . Propulsion 6 | . . . 2 . . . 2 . . . . . . 2 . Utility 11 | . . . . . . . . 2 2 2 1 2 . . 2 Weapon . | . . . . . . . . . . . . . . . . Parts Attached 99 | 7 5 . 3 4 2 . 4 17 3 6 2 . 5 16 25 Power 6 | 1 . . . 1 . . . 1 1 . 1 . . . 1 Engine 2 | 1 . . . 1 . . . . . . . . . . . Core 3 | . . . . . . . . 1 1 . 1 . . . . Reactor 1 | . . . . . . . . . . . . . . . 1 Propulsion 28 | 2 2 . 2 2 1 . 2 2 . . 1 . . 7 7 Treads 2 | 2 . . . . . . . . . . . . . . . Leg 1 | . . . . . . . . . . . . . . . 1 Wheel . | . . . . . . . . . . . . . . . . Hover 1 | . . . . . . . . . . . . . . 1 . Flight 24 | . 2 . 2 2 1 . 2 2 . . 1 . . 6 6 Utility 49 | 2 1 . . . 1 . . 10 2 4 . . 5 8 16 Device 16 | 1 1 . . . . . . 4 . . . . 1 4 5 Storage 2 | 1 . . . . 1 . . . . . . . . . . Processor 15 | . . . . . . . . 2 1 . . . 1 . 11 Hackware 12 | . . . . . . . . 1 1 3 . . 3 4 . Protection 4 | . . . . . . . . 3 . 1 . . . . . Artifact . | . . . . . . . . . . . . . . . . Weapon 16 | 2 2 . 1 1 . . 2 4 . 2 . . . 1 1 Energy Gun 1 | 1 . . . . . . . . . . . . . . . Energy Cannon 1 | . . . . . . . . . . . . . . . 1 Ballistic Gun 7 | 1 2 . 1 1 . . 1 1 . . . . . . . Ballistic Cannon . | . . . . . . . . . . . . . . . . Launcher 2 | . . . . . . . . 1 . . . . . 1 . Special Weapon 1 | . . . . . . . 1 . . . . . . . . Impact Weapon . | . . . . . . . . . . . . . . . . Slashing Weapon 2 | . . . . . . . . 2 . . . . . . . Piercing Weapon 2 | . . . . . . . . . . 2 . . . . . Special Melee Weapon . | . . . . . . . . . . . . . . . . Unidentified Prototypes 2 | . . . . . . . 1 . . . . . . . 1 Parts Lost 44 | . . . 1 1 . . . . . . . . . 22 20 Power 4 | . . . . . . . . . . . . . . 2 2 Propulsion 15 | . . . . 1 . . . . . . . . . 9 5 Utility 20 | . . . . . . . . . . . . . . 10 10 Weapon 5 | . . . 1 . . . . . . . . . . 1 3 Highest Loss Streak 19 | . . . 1 1 . . . . . . . . . 19 14 To Critical Strikes . | . . . . . . . . . . . . . . . . Average Backups 10 | 4 7 6 5 6 6 8 8 12 13 14 13 14 13 11 4 Power . | . . . . . . . . 1 1 1 . . . . . Propulsion 1 | 3 4 4 2 2 2 2 . . 1 3 4 5 4 1 . Utility 4 | . 1 1 1 1 1 3 3 5 8 7 6 7 7 7 2 Weapon 2 | . 1 1 2 3 3 3 3 3 1 2 2 2 2 2 1 Tool/Special . | . . . . . . . . . . . . . . . . Unused Backups 41 | . 7 . 1 1 . . . 11 7 4 1 . 1 2 6 Power 2 | . . . . . . . . 2 . . . . . . . Propulsion 7 | . 4 . . . . . . . . 1 . . 1 . 1 Utility 18 | . 1 . . . . . . 6 3 3 . . . 2 3 Weapon 14 | . 2 . 1 1 . . . 3 4 . 1 . . . 2 Tool/Special . | . . . . . . . . . . . . . . . . Average Slot Usage (%) 71 | . 84 85 80 91 77 66 68 72 72 75 83 76 84 70 48 Engine 1 | . 7 . . 4 11 11 6 1 . . . . . . . Core 4 | . . . . . . . . 5 6 5 10 9 9 5 1 Flight 19 | . 15 28 43 43 22 11 26 23 20 17 15 14 14 14 6 Device 9 | . 14 14 11 11 11 11 9 9 9 6 10 9 13 10 4 Storage 5 | . 14 14 11 11 11 11 9 7 6 5 5 4 4 2 . Processor 5 | . . . . . . . . 6 2 . . . 4 4 21 Hackware 7 | . . . . . . . . 1 12 22 21 19 19 17 7 Protection 3 | . . . . . . . . 3 6 9 9 9 9 5 . Ballistic Gun 5 | . 18 28 15 22 22 22 17 4 . . . . . . . Slashing Weapon 2 | . . . . . . . . 5 6 4 . . . . . Piercing Weapon 2 | . . . . . . . . . . 1 10 9 9 5 4 Peak Build Rating 138 | 7 8 7 9 11 40 40 48 66 74 88 99 99 118 138 125 Average Rating 62 | 6 6 6 8 9 31 40 44 60 72 80 97 99 111 104 75 On Entrance 46 | . 7 6 7 9 11 40 40 48 65 74 88 99 99 118 35 Avg Prop Armor Cover (%) 13 | . . . 9 9 . . . . . . . . . . 25 Naked Turns . | . . . . . . . . . . . . . . . . Heaviest Build 54 | 14 14 8 8 15 30 30 34 41 40 42 48 48 49 54 15 Greatest Support 79 | 40 40 8 16 16 50 50 58 62 62 64 64 64 64 79 40 Greatest Overweight (x) 3 | . 3 . . . . . . . . . . . . 1 1 Average Overweight (x) . | . . . . . . . . . . . . . . . . Largest Inventory Capacity 15 | 8 8 8 8 8 15 15 15 15 15 15 15 15 15 15 5 Average Capacity 11 | 7 8 8 8 8 9 15 15 15 15 15 15 15 15 11 5 Most Carried 15 | 7 8 8 8 8 10 10 12 15 15 15 15 15 15 15 5 Average Carried 11 | 4 7 7 7 7 8 10 10 14 14 14 14 15 14 11 4 Final Capacity 15 | 8 8 8 8 8 15 15 15 15 15 15 15 15 15 5 5 Final Carried 15 | 7 7 8 8 8 10 10 12 15 15 14 15 15 15 5 5 Class Distribution -------------------- 37% | Hacker-Mutant 30% | Mutant 9% | Scout 7% | Gladiator 6% | Hacker-Scout Dominant Class ---------------- Mutant | -10/Materials Mutant | -10/Mines Sprinter | -9/Materials Scavenger-Sprinter | -9/Mines Mutant | -9/Exiles Mutant | -8/Mines Mutant | -8/Materials Mutant | -7/Factory Hacker-Mutant | -6/Factory Hacker-Mutant | -5/Factory Hacker-Mutant | -4/Factory Hacker-Mutant | -3/Research Hacker-Scout | -3/DSF Hacker-Scout | -2/Research Hacker-Mutant | -1/Access Resources | -11 -10 -10 -9 -9 -9 -8 -8 -7 -6 -5 -4 -3 -3 -2 -1 ----------- Run | Yrd Mat Min Mat Min Exi Min Mat Fac Fac Fac Fac Res DSF Res Acc Matter Collected 1972 | 291 . . 115 72 . . 67 431 50 70 30 . . 130 716 Remotely 99 | 99 . . . . . . . . . . . . . . . Salvage Created 3577 | 186 . . 100 32 . . 130 1021 267 792 73 . . 90 886 Parts 197 | 13 . . 12 5 . . 4 65 13 21 6 . . 8 50 Haulers Intercepted 14 | . . . 2 . . . . 6 . 5 . . . . 1 Recyclers Shooed 5 | . . 1 1 . . . . . 2 1 . . . . . Parts Field Recycled . | . . . . . . . . . . . . . . . . Retrieved Matter . | . . . . . . . . . . . . . . . . Parts Self-Destructed . | . . . . . . . . . . . . . . . . Prevented . | . . . . . . . . . . . . . . . . Parts Restored . | . . . . . . . . . . . . . . . . Kills | -11 -10 -10 -9 -9 -9 -8 -8 -7 -6 -5 -4 -3 -3 -2 -1 ------- Run | Yrd Mat Min Mat Min Exi Min Mat Fac Fac Fac Fac Res DSF Res Acc Combat Hostiles Destroyed 16 | . . . . 2 . . . 3 1 . . . . 4 6 Melee 6 | . . . . . . . . 2 1 . . . . . 3 Guns 3 | . . . . 2 . . . 1 . . . . . . . Cannons 3 | . . . . . . . . . . . . . . . 3 AOE 4 | . . . . . . . . . . . . . . 4 . Classes Destroyed 11 | 3 . . 3 1 . . . 4 . . . . . . . Worker 8 | 2 . . . . . . . 1 2 1 . . . . 2 Builder 8 | . . . 1 . . . . 3 . . . . . . 4 Tunneler 4 | 2 . . . . . . . 1 . 1 . . . . . Hauler 14 | . . . 2 . . . . 6 . 5 . . . . 1 Recycler 10 | 1 . . . . . . 1 4 1 1 . . . . 2 Mechanic 1 | . . . . . . . . 1 . . . . . . . Operator 10 | . . . . . . . . 3 3 1 3 . . . . Watcher 5 | . . . 1 . . . 1 2 . 1 . . . . . Swarmer 7 | . . . . 2 . . . . 1 . . . . 4 . Grunt 1 | . . . . . . . . 1 . . . . . . . Programmer 8 | . . . . . . . . 2 . . . . . . 6 Best Kill Streak 8 | 2 . . 2 2 . . 2 4 1 3 1 . . 4 8 Combat Bots Only 4 | . . . . 2 . . . 1 1 . . . . 4 4 Max Kills in Single Turn 2 | 1 . . 1 1 . . 1 1 1 1 1 . . 2 1 Gunslinging . | . . . . . . . . . . . . . . . . Exploded 2 | . . . . . . . . . . . . . . 2 . Melee 1 | . . . . . . . . 1 1 . . . . . 1 Uniques/NPCs Destroyed . | . . . . . . . . . . . . . . . . Combat | -11 -10 -10 -9 -9 -9 -8 -8 -7 -6 -5 -4 -3 -3 -2 -1 -------- Run | Yrd Mat Min Mat Min Exi Min Mat Fac Fac Fac Fac Res DSF Res Acc Hostile Shots Fired 572 | . 2 . 6 26 . 11 10 38 13 6 7 . 9 243 201 Missed 232 | . 1 . 3 11 . 7 4 18 6 5 7 . 5 100 65 Hits 340 | . 1 . 3 15 . 4 6 20 7 1 . . 4 143 136 Melee 5 | . . . . . . 1 . . 4 . . . . . . Projectile 335 | . 1 . 3 15 . 3 6 20 3 1 . . 4 143 136 Critical Strikes 16 | . . . . . . . . . 4 . . . . 3 9 Actively Blocked 8 | . . . . . . . . . . . . . . 3 5 Damage Taken 7156 | . 16 . 219 130 . 56 72 269 115 20 86 . 165 2919 3089 Core 2902 | . . . 91 36 . . . 17 14 . . . . 1127 1617 Absorbed by Shields . | . . . . . . . . . . . . . . . . Ignored by Resistances 15 | . . . . . . . . 15 . . . . . . . Regen/Repaired (Parts) 101 | . . . . . . . 35 23 . . . . . 43 . Core Remaining (%) 88 | 100 . 100 . . . 68 100 97 98 100 100 . 100 22 . Volleys Fired 92 | 21 1 2 13 10 . 1 6 24 . . . . . 9 5 Largest 2 | 2 2 2 2 2 . 2 2 2 . . . . . 1 1 Hottest 120 | 60 40 40 40 40 . 40 45 45 . . . . . 36 120 Shots Fired 152 | 42 2 4 21 20 . 2 9 38 . . . . . 9 5 Gun 127 | 42 2 4 21 20 . 2 6 30 . . . . . . . Cannon 5 | . . . . . . . . . . . . . . . 5 Launcher 10 | . . . . . . . . 1 . . . . . 9 . Special 10 | . . . . . . . 3 7 . . . . . . . Kinetic 106 | 21 2 4 21 20 . 2 6 30 . . . . . . . Thermal 5 | . . . . . . . . . . . . . . . 5 Explosive 10 | . . . . . . . . 1 . . . . . 9 . Electromagnetic 21 | 21 . . . . . . . . . . . . . . . Robot Hit Streak 7 | 4 1 2 7 5 . . 2 7 . . . . . 2 1 Robot Miss Streak 9 | 9 1 1 2 7 . 2 3 2 . . . . . 2 1 Penetration Max . | . . . . . . . . . . . . . . . . Secondary Targets 1 | . . . . 1 . . . . . . . . . . . Max Gunslinging Chain 1 | . . . . 1 . . . . . . . . . . . Shots Hit Robots 191 | 19 1 3 15 10 . . 5 66 11 20 3 . . 2 36 Core Hits 89 | 9 . 1 7 2 . 1 3 19 6 7 3 . . 14 17 Critical Kills 1 | . . . . . . . . 1 . . . . . . . Critical Parts Destroyed 1 | . . . . . . . . 1 . . . . . . . Critical Strikes 12 | . . . . . . . . 5 . 3 . . . . 4 Destroy 2 | . . . . . . . . 2 . . . . . . . Sever 6 | . . . . . . . . 3 . 3 . . . . . Impale 4 | . . . . . . . . . . . . . . . 4 Melee Attacks 288 | . . . . . . . . 99 27 40 20 . 2 33 67 Impact . | . . . . . . . . . . . . . . . . Slashing 157 | . . . . . . . . 99 27 31 . . . . . Piercing 131 | . . . . . . . . . . 9 20 . 2 33 67 Sneak Attacks 42 | . . . . . . . . 15 8 8 2 . . . 9 Combat Hostiles . | . . . . . . . . . . . . . . . . Follow-up Attacks 3 | . . . . . . . . . . . . . . . 3 Damage Inflicted 8574 | 214 10 24 283 82 . 6 54 2780 1081 1509 196 . . 392 1943 Guns 812 | 214 10 24 108 82 . 6 54 314 . . . . . . . Cannons 158 | . . . . . . . . . . . . . . . 158 Explosions 567 | . . . 175 . . . . . . . . . . 392 . Melee 7026 | . . . . . . . . 2466 1081 1509 196 . . . 1774 Ramming 11 | . . . . . . . . . . . . . . . 11 Kinetic 680 | 82 10 24 108 82 . 6 54 314 . . . . . . . Thermal 333 | . . . 175 . . . . . . . . . . . 158 Explosive 392 | . . . . . . . . . . . . . . 392 . Electromagnetic 132 | 132 . . . . . . . . . . . . . . . Impact . | . . . . . . . . . . . . . . . . Slashing 5056 | . . . . . . . . 2466 1081 1509 . . . . . Piercing 1970 | . . . . . . . . . . . 196 . . . 1774 Highest Corruption 28 | . . . . . . . . 2 . . . . . . 28 Average Corruption 4 | . . . . . . . . 1 . . . . . . 12 Corruption Purged . | . . . . . . . . . . . . . . . . Corruption Blocked . | . . . . . . . . . . . . . . . . Effects 30 | . . . . . . . . 12 . . . . . . 18 Message Errors 12 | . . . . . . . . 6 . . . . . . 6 Matter Fused 4 | . . . . . . . . 1 . . . . . . 3 Heat Flow Errors 6 | . . . . . . . . 3 . . . . . . 3 Energy Discharges 4 | . . . . . . . . 1 . . . . . . 3 Data Loss (minor) 1 | . . . . . . . . 1 . . . . . . . Misdirections 3 | . . . . . . . . . . . . . . . 3 Overload Shots . | . . . . . . . . . . . . . . . . Overflow Damage 1492 | . . . 63 . . . . 684 230 305 . . . . 210 Projectiles . | . . . . . . . . . . . . . . . . Explosions 63 | . . . 63 . . . . . . . . . . . . Melee 1429 | . . . . . . . . 684 230 305 . . . . 210 Knockbacks . | . . . . . . . . . . . . . . . . Impact . | . . . . . . . . . . . . . . . . Kinetic . | . . . . . . . . . . . . . . . . Secondary . | . . . . . . . . . . . . . . . . Self-Inflicted Damage 216 | . . . 179 . . . . . . . . . . 32 5 Shots 3 | . . . 2 . . . . . . . . . . 1 . Rammed 2 | . . . . . . . . . . . . . . . 2 Targets Rammed 4 | . . . . . . . . . . . . . . . 4 Kicked 2 | . . . . . . . . . . . . . . . 2 Crushed . | . . . . . . . . . . . . . . . . Highest Temperature 189 | 40 . . 12 . . 11 26 163 . . . . . 14 189 Average Temperature 30 | 20 . . 6 . . 8 11 41 . . . . . 2 59 Received Heat Transfer 309 | . 9 . 24 . . 9 36 96 . . . . 9 99 27 Siege Activations . | . . . . . . . . . . . . . . . . Martial Activations . | . . . . . . . . . . . . . . . . Shielding Activations . | . . . . . . . . . . . . . . . . Robots Disrupted . | . . . . . . . . . . . . . . . . Combat Hostiles . | . . . . . . . . . . . . . . . . Robots Corrupted . | . . . . . . . . . . . . . . . . Combat Hostiles . | . . . . . . . . . . . . . . . . Parts Fried . | . . . . . . . . . . . . . . . . Impact Corruptions . | . . . . . . . . . . . . . . . . Robots Melted . | . . . . . . . . . . . . . . . . Combat Hostiles . | . . . . . . . . . . . . . . . . Parts Melted . | . . . . . . . . . . . . . . . . Heat Transferred 261 | . . . 150 . . . . . . . . . . . 111 Parts Sabotaged . | . . . . . . . . . . . . . . . . Parts Stolen . | . . . . . . . . . . . . . . . . Parts Stripped . | . . . . . . . . . . . . . . . . Power Chain Reactions . | . . . . . . . . . . . . . . . . Alert | -11 -10 -10 -9 -9 -9 -8 -8 -7 -6 -5 -4 -3 -3 -2 -1 ------- Run | Yrd Mat Min Mat Min Exi Min Mat Fac Fac Fac Fac Res DSF Res Acc Maximum Alert Level 1 | . . . . . . . . . . . . . . 1 . Low Security (%) 99 | 100 100 100 100 100 . 100 100 100 100 100 100 100 100 99 100 Level 1 . | . . . . . . . . . . . . . . . . Level 2 . | . . . . . . . . . . . . . . . . Level 3 . | . . . . . . . . . . . . . . . . Level 4 . | . . . . . . . . . . . . . . . . Level 5 . | . . . . . . . . . . . . . . . . High Security . | . . . . . . . . . . . . . . . . Max Security . | . . . . . . . . . . . . . . . . Peak Influence 205 | 10 . . 102 55 . . 23 122 68 34 71 29 53 205 117 Initial 65 | . . . . 35 . . . . 57 32 . 29 21 29 65 Average 29 | . . . 58 18 . . 5 23 32 10 19 29 35 58 57 Influence Increases 2258 | 25 . . 182 40 . . 42 545 208 128 217 . 32 522 317 Destroy 0b10 Robot/C 320 | . . . . 40 . . . 60 20 . . . . 80 120 Destroy 0b10 Robot/NC 285 | 25 . . 20 . . . 10 105 20 45 15 . . . 45 Destroy Leader 94 | . . . 6 . . . 2 32 . 12 . . . 10 32 Successful Hack 200 | . . . 6 . . . 15 50 80 28 . . . . 21 Disable Machine 120 | . . . 45 . . . . 15 15 . . . . 30 15 Destroy Structure 429 | . . . 30 . . . . 58 13 28 22 . 2 222 54 Partial Spotted 165 | . . . 45 . . . 15 15 15 15 30 . 15 15 . Lose Combat Pursuer 645 | . . . 30 . . . . 210 45 . 150 . 15 165 30 Influence Decreases 2251 | 25 . . 90 132 . . 42 427 258 196 160 28 8 465 420 Entered New Map 259 | . . . . 57 . . . . 61 36 . 28 8 24 45 Time Decay 1607 | 25 . . 80 65 . . 42 417 197 160 100 . . 221 300 Lost Part 315 | . . . 10 10 . . . . . . . . . 220 75 Lost Ally 70 | . . . . . . . . 10 . . 60 . . . . Squads Dispatched 34 | . . . . . . . 1 12 3 2 3 . 1 6 6 Investigation 7 | . . . . . . . . 5 . 1 . . . . 1 Extermination 11 | . . . . . . . . 4 1 1 . . . 2 3 Reinforcement 14 | . . . . . . . . 3 1 . 3 . 1 4 2 Assault 1 | . . . . . . . . . 1 . . . . . . Garrison 1 | . . . . . . . 1 . . . . . . . . Intercept . | . . . . . . . . . . . . . . . . Searches Triggered . | . . . . . . . . . . . . . . . . Construction Impeded 1 | . . . . . . . . . . . . . . . 1 Haulers Reinforced 1 | . . . . . . . . 1 . . . . . . . Active Scanning Responses . | . . . . . . . . . . . . . . . . Cargo Convoy Interrupts . | . . . . . . . . . . . . . . . . Stealth | -11 -10 -10 -9 -9 -9 -8 -8 -7 -6 -5 -4 -3 -3 -2 -1 --------- Run | Yrd Mat Min Mat Min Exi Min Mat Fac Fac Fac Fac Res DSF Res Acc Distress Signals 8 | . . . 1 . . . . 2 . 1 2 . . 1 1 Communications Jammed . | . . . . . . . . . . . . . . . . Distress Signals . | . . . . . . . . . . . . . . . . Times Spotted 173 | . 2 . 9 3 . 6 11 23 16 10 16 . 3 38 36 Peak Tracking Total 17 | . 2 . 8 3 . 6 10 4 5 7 7 . 3 17 14 Tactical Retreats 26 | . . . 1 . . . . 9 2 . 5 . 1 3 5 ECM-based Alert Blocks 11 | . . . . . . . . . . . . . . 2 9 Traps | -11 -10 -10 -9 -9 -9 -8 -8 -7 -6 -5 -4 -3 -3 -2 -1 ------- Run | Yrd Mat Min Mat Min Exi Min Mat Fac Fac Fac Fac Res DSF Res Acc Traps Triggered 3 | . . . . . . . . . 1 . 2 . . . . Indirectly . | . . . . . . . . . . . . . . . . Trap Hack Attempts . | . . . . . . . . . . . . . . . . Triggered . | . . . . . . . . . . . . . . . . Disarmed . | . . . . . . . . . . . . . . . . Reprogrammed 5 | . . . . . . . . . . 5 . . . . . Reused . | . . . . . . . . . . . . . . . . Traps Extracted . | . . . . . . . . . . . . . . . . Installed . | . . . . . . . . . . . . . . . . Triggered . | . . . . . . . . . . . . . . . . Machines | -11 -10 -10 -9 -9 -9 -8 -8 -7 -6 -5 -4 -3 -3 -2 -1 ---------- Run | Yrd Mat Min Mat Min Exi Min Mat Fac Fac Fac Fac Res DSF Res Acc Machines Disabled 8 | . . . 3 . . . . 1 1 . . . . 2 1 Max in Single Turn 3 | . . . 3 . . . . 1 1 . . . . 1 1 Garrison Access 4 | . . . . . . . . 2 1 1 . . . . . Machines Repaired . | . . . . . . . . . . . . . . . . Machines Dismantled . | . . . . . . . . . . . . . . . . Machines Sabotaged . | . . . . . . . . . . . . . . . . Overloaded Fab Kills . | . . . . . . . . . . . . . . . . Hacking | -11 -10 -10 -9 -9 -9 -8 -8 -7 -6 -5 -4 -3 -3 -2 -1 --------- Run | Yrd Mat Min Mat Min Exi Min Mat Fac Fac Fac Fac Res DSF Res Acc Machines Accessed 51 | . . 1 5 . 1 . 3 22 7 5 1 1 . 2 3 Terminals 32 | . . 1 4 . . . 2 15 4 3 . 1 . . 2 Fabricators 6 | . . . . . . . . 2 2 . 1 . . 1 . Repair Stations 4 | . . . . . . . 1 1 . . . . . 1 1 Recycling Units 1 | . . . . . . . . 1 . . . . . . . Scanalyzers 2 | . . . 1 . . . . . . 1 . . . . . Garrison Access 5 | . . . . . . . . 3 1 1 . . . . . Total Hacks 127 | . . 2 12 . 1 . 10 47 23 16 1 1 . 8 6 Successful 60 | . . 1 4 . 1 . 5 14 15 10 1 1 . 5 3 Failed 64 | . . . 7 . . . 5 33 7 6 . . . 3 3 Catastrophic 19 | . . . 1 . . . 2 9 2 3 . . . . 2 Database Lockouts 3 | . . 1 1 . . . . . 1 . . . . . . Manual 68 | . . 3 10 . 1 . 4 24 18 3 1 . . 1 3 Terminals 88 | . . 2 11 . . . 6 34 18 12 . 1 . . 4 Fabricators 13 | . . . . . . . . 3 4 . 1 . . 5 . Repair Stations 11 | . . . . . . . 4 2 . . . . . 3 2 Recycling Units 3 | . . . . . . . . 3 . . . . . . . Scanalyzers 4 | . . . 1 . . . . . . 3 . . . . . Garrison Access 7 | . . . . . . . . 5 1 1 . . . . . Terminal Hacks 25 | . . 1 4 . 1 . 2 3 6 6 . 1 . . 1 Prototype ID Bank 12 | . . 1 4 . . . 2 . 5 . . . . . . Open DSF 1 | . . . . . . . . . . . . 1 . . . Level Access Points 4 | . . . . . . . . 1 1 1 . . . . 1 Terminal Index 1 | . . . . . . . . . . 1 . . . . . Locate Traps 1 | . . . . . . . . . . 1 . . . . . Reprogram Traps 1 | . . . . . . . . . . 1 . . . . . Hauler Manifests 1 | . . . . . . . . 1 . . . . . . . Registered Components 2 | . . . . . . . . 1 . 1 . . . . . Registered Prototypes 1 | . . . . . . . . . . 1 . . . . . Proto ID Catalog 1 | . . . . . 1 . . . . . . . . . . Fabricator Hacks 5 | . . . . . . . . 1 2 . . . . 2 . Network Status 4 | . . . . . . . . 1 2 . . . . 1 . Build 1 | . . . . . . . . . . . . . . 1 . Repair Station Hacks 8 | . . . . . . . 3 2 . . . . . 2 1 Scan Component 4 | . . . . . . . 2 1 . . . . . 1 . Repair 3 | . . . . . . . 1 1 . . . . . 1 . Refit 1 | . . . . . . . . . . . . . . . 1 Recycling Unit Hacks 1 | . . . . . . . . 1 . . . . . . . Retrieve Components 1 | . . . . . . . . 1 . . . . . . . Scanalyzer 2 | . . . . . . . . . . 2 . . . . . Retrieve Study 2 | . . . . . . . . . . 2 . . . . . Garrison Access Hacks 4 | . . . . . . . . 2 1 1 . . . . . Seal Access 4 | . . . . . . . . 2 1 1 . . . . . Unauthorized Hacks 15 | . . . . . . . . 5 6 1 1 . . 1 1 Terminals 9 | . . . . . . . . 3 4 1 . . . . 1 Assimilate 5 | . . . . . . . . 1 2 1 . . . . 1 Botnet 2 | . . . . . . . . 1 1 . . . . . . Operators 2 | . . . . . . . . 1 1 . . . . . . Fabricators 6 | . . . . . . . . 2 2 . 1 . . 1 . Liberate 6 | . . . . . . . . 2 2 . 1 . . 1 . Repair Stations . | . . . . . . . . . . . . . . . . Recycling Units . | . . . . . . . . . . . . . . . . Scanalyzers . | . . . . . . . . . . . . . . . . Garrison Access . | . . . . . . . . . . . . . . . . Data Cores Recovered 1 | . . . . . . . . 1 . . . . . . . Used 1 | . . . . . . . . 1 . . . . . . . Hacking Detections 39 | . . 1 4 . . . 3 18 5 3 1 . . 2 2 Full Trace Events 7 | . . . . . . . . 5 . 1 . . . . 1 Feedback Events 2 | . . . . . . . . 1 . . . . . . 1 Corruption 2 | . . . . . . . . 1 . . . . . . 1 Feedback Blocked . | . . . . . . . . . . . . . . . . Robot Schematics Acquired . | . . . . . . . . . . . . . . . . Robots Built . | . . . . . . . . . . . . . . . . Authchips . | . . . . . . . . . . . . . . . . Time . | . . . . . . . . . . . . . . . . Total Robot Build Rating . | . . . . . . . . . . . . . . . . Part Schematics Acquired . | . . . . . . . . . . . . . . . . Parts Built 1 | . . . . . . . . . . . . . . 1 . Authchips . | . . . . . . . . . . . . . . . . Time 222 | . . . . . . . . . . . . . . 222 . Total Part Build Rating 9 | . . . . . . . . . . . . . . 9 . Part Studies Acquired 2 | . . . . . . . . . . 2 . . . . . Parts Repaired 3 | . . . . . . . 1 1 . . . . . 1 . Time 92 | . . . . . . . 44 26 . . . . . 22 . Parts Recycled . | . . . . . . . . . . . . . . . . Recycled Matter . | . . . . . . . . . . . . . . . . Retrieved Matter . | . . . . . . . . . . . . . . . . Retrieved Components 1 | . . . . . . . . 1 . . . . . . . Parts Scanalyzed . | . . . . . . . . . . . . . . . . Part Schematics Acquired . | . . . . . . . . . . . . . . . . Parts Damaged . | . . . . . . . . . . . . . . . . Bothacking | -11 -10 -10 -9 -9 -9 -8 -8 -7 -6 -5 -4 -3 -3 -2 -1 ------------ Run | Yrd Mat Min Mat Min Exi Min Mat Fac Fac Fac Fac Res DSF Res Acc Used RIF Installer . | . . . . . . . . . . . . . . . . Robots Hacked 6 | . . . . . . . 1 5 . . . . . . . Non-combat 6 | . . . . . . . 1 5 . . . . . . . Combat . | . . . . . . . . . . . . . . . . Robot Hacks Applied 6 | . . . . . . . 1 5 . . . . . . . parse_system 2 | . . . . . . . 1 1 . . . . . . . no_distress 1 | . . . . . . . . 1 . . . . . . . find_chute 3 | . . . . . . . . 3 . . . . . . . Relay Couplers Released . | . . . . . . . . . . . . . . . . Fabnet Peak Effective % . | . . . . . . . . . . . . . . . . Robots Rewired . | . . . . . . . . . . . . . . . . Allies Hacked . | . . . . . . . . . . . . . . . . Hacks Repelled . | . . . . . . . . . . . . . . . . Allies | -11 -10 -10 -9 -9 -9 -8 -8 -7 -6 -5 -4 -3 -3 -2 -1 -------- Run | Yrd Mat Min Mat Min Exi Min Mat Fac Fac Fac Fac Res DSF Res Acc Total Allies 8 | . . . . . . . . 1 2 1 3 . . . 1 Largest Group 1 | . . . . . . . . . 1 1 1 . . . 1 Highest-Rated Group 37 | . . . . . . . . . 26 26 37 . . . 26 Highest-Rated Ally 37 | . . . . . . . . . 26 26 37 . . . 26 Total Orders 3 | . . . . . . . . . 2 1 . . . . . STAY 3 | . . . . . . . . . 2 1 . . . . . Ally Attacks 2 | . . . . . . . . . . . 2 . . . . Total Damage 47 | . . . . . . . . . . . 47 . . . . Kills . | . . . . . . . . . . . . . . . . Allies Corrupted 1 | . . . . . . . . . . . . . . . 1 Allies Melted . | . . . . . . . . . . . . . . . . Intel | -11 -10 -10 -9 -9 -9 -8 -8 -7 -6 -5 -4 -3 -3 -2 -1 ------- Run | Yrd Mat Min Mat Min Exi Min Mat Fac Fac Fac Fac Res DSF Res Acc Active Infowar (turns) 4798 | . 110 56 130 215 141 25 157 1522 419 458 261 1 53 484 766 Optics 1303 | . . . . . . . . . . . . . 53 484 766 Sensors 94 | . . . . . . . . . . . . . . . 94 Structural 2777 | . . . . . . . . 1222 419 458 261 1 53 335 28 Traps 634 | . . . . . . . . 634 . . . . . . . Seismic 895 | . 110 56 130 215 141 25 157 61 . . . . . . . T.N.C. 159 | . . . . . . . . 159 . . . . . . . Jamming 6 | . . . . . . . . . . . . . . 6 . ECM 245 | . . . . . . . . . . . . . . 3 242 Robot Analysis Total . | . . . . . . . . . . . . . . . . Derelict Logs Recovered 1 | . . . . 1 . . . . . . . . . . . Drone Launches . | . . . . . . . . . . . . . . . . Drone Recoveries . | . . . . . . . . . . . . . . . . Exploration | -11 -10 -10 -9 -9 -9 -8 -8 -7 -6 -5 -4 -3 -3 -2 -1 ------------- Run | Yrd Mat Min Mat Min Exi Min Mat Fac Fac Fac Fac Res DSF Res Acc Turns Passed 5092 | 261 111 56 162 215 141 25 157 1522 419 458 261 1 53 484 766 Spaces Moved 8186 | 83 132 120 255 523 238 45 244 2713 782 747 487 3 88 636 1090 Core 449 | 3 . . . . . . . . . . . . . 130 316 Treads 104 | 80 24 . . . . . . . . . . . . . . Legs 19 | . . . . . . . . . . . . . . . 19 Wheels . | . . . . . . . . . . . . . . . . Hover 73 | . . . . . . . . . . . . . . 73 . Flight 7541 | . 108 120 255 523 238 45 244 2713 782 747 487 3 88 433 755 Fastest Speed 28 | 50 37 37 31 31 31 50 37 37 37 37 37 37 37 28 36 Average Speed 39 | 156 61 37 32 33 40 50 37 37 37 37 37 37 37 36 44 Slowest Speed 280 | 160 280 37 37 37 50 50 37 37 37 37 37 37 37 100 120 Overloaded Moves . | . . . . . . . . . . . . . . . . Propulsion Burnouts . | . . . . . . . . . . . . . . . . Robots Hopped 68 | . 3 . 1 6 . 2 4 16 5 4 16 . . 1 10 Potential Cave-ins . | . . . . . . . . . . . . . . . . Cave-ins Triggered . | . . . . . . . . . . . . . . . . Exploration Rate (%) 37 | 5 28 31 31 95 62 20 25 68 26 27 14 . 87 18 24 Regions Visited 15 Branch Regions 4 Pre-discovered Areas . | . . . . . . . . . . . . . . . . Known Exits Taken 5 | . . . . . . . 1 1 1 1 . 1 . . . Unknown Exits Taken 9 | 1 1 1 1 1 1 1 . . . . 1 . . 1 . Scrap Searched 2 | . . . . 2 . . . . . . . . . . . Spaces Dug 143 | . . . . . . . . 58 13 14 11 . 1 30 16 Terrain Destroyed 222 | . . . 30 . . . . 58 13 14 11 . 1 77 18 Melee 136 | . . . . . . . . 51 13 14 11 . 1 30 16 Projectile 2 | . . . . . . . . . . . . . . . 2 AOE 84 | . . . 30 . . . . 7 . . . . . 47 . Terrain Rammed . | . . . . . . . . . . . . . . . . Walls Destroyed . | . . . . . . . . . . . . . . . . Machines Disabled . | . . . . . . . . . . . . . . . . Actions | -11 -10 -10 -9 -9 -9 -8 -8 -7 -6 -5 -4 -3 -3 -2 -1 --------- Run | Yrd Mat Min Mat Min Exi Min Mat Fac Fac Fac Fac Res DSF Res Acc Total 9382 | 173 161 129 317 540 282 43 299 3020 858 854 527 2 103 828 1246 Wait 596 | 56 . . 44 6 36 . 45 128 19 56 29 . 4 124 49 Move 8038 | 82 125 119 252 510 237 41 236 2680 771 738 455 2 87 633 1070 Hop 65 | . 3 . 1 6 . 1 3 16 5 4 15 . . 1 10 Pick Up 88 | 7 7 4 3 1 2 . 3 23 16 6 3 . 4 4 5 Fast Attach 50 | 7 6 . 1 2 1 . 2 3 1 2 . . . 2 23 Attach 31 | . . . 2 . . . 2 3 2 3 2 . 2 10 5 Detach 13 | . 3 . . . . . 1 3 1 1 . . . . 4 Swap 42 | . 2 . . 2 1 . 1 18 2 2 1 . 3 9 1 Drop 84 | . 14 4 1 3 5 . . 23 14 5 2 . 1 5 7 Fire 92 | 21 1 2 13 10 . 1 6 24 . . . . . 9 5 Melee 274 | . . . . . . . . 99 27 37 15 . 2 31 63 Ram 2 | . . . . . . . . . . . . . . . 2 Kick 2 | . . . . . . . . . . . . . . . 2 Crush . | . . . . . . . . . . . . . . . . Escape Stasis 5 | . . . . . . . . . . . 5 . . . . Rewire . | . . . . . . . . . . . . . . . . Trap . | . . . . . . . . . . . . . . . . Miscellaneous . | . . . . . . . . . . . . . . . . Route ------- -11/Scrapyard -10/Materials -10/Mines -9/Materials (discovered 3 exits: *Mat / [*Min] / [*Sto]) -9/Mines (discovered 3 exits: *Mat x2 / *Exi) -9/Exiles (discovered 2 exits: [*Min x2]) -8/Mines -8/Materials -7/Factory (discovered 5 exits: *Fac x4 / [*Low]) -6/Factory (discovered 5 exits: *Fac x4 / [*Low]) -5/Factory (discovered 4 exits: *Fac x4) -4/Factory -3/Research -3/DSF -2/Research (discovered 2 exits: *Acc / *Tes) -1/Access (discovered 1 exit: Sur) History --------- Turn | Location | Event 4 | -11/Scrapyard | Discovered new exit (range 15) 262 | -11/Scrapyard | Entered Materials 355 | -10/Materials | Build established: Mutant 356 | -10/Materials | Discovered new exit (range 16) 373 | -10/Materials | Entered Mines 380 | -10/Mines | Met a Derelict testing a Signal Generator 383 | -10/Mines | Found Signal Generator 407 | -10/Mines | Found a Scrap Suit stashed away for nefarious purposes 408 | -10/Mines | Found Scrap Suit 425 | -10/Mines | Discovered new exit (range 3) 428 | -10/Mines | Central database locked down 429 | -10/Mines | Entered Materials 429 | -9/Materials | Evolved 2 slots: Propulsion x2 437 | -9/Materials | Discovered new exit (range 15) 561 | -9/Materials | Discovered new exit (range 6) 573 | -9/Materials | Central database locked down 586 | -9/Materials | Discovered new exit (range 15) 591 | -9/Materials | Entered Mines 641 | -9/Mines | Discovered new exit (range 9) 703 | -9/Mines | Learned location of 1 exit from Materials 769 | -9/Mines | Discovered new exit (range 13) 804 | -9/Mines | Deemed a non-threat by the Exiles lab entrance 805 | -9/Mines | Discovered new exit (range 5) 806 | -9/Mines | Entered Exiles 811 | -9/Exiles | Discovered new exit (range 15) 814 | -9/Exiles | Met 8R-AWN 819 | -9/Exiles | Met EX-HEX 828 | -9/Exiles | Met EX-BIN 832 | -9/Exiles | Aligned with FarCom system 832 | -9/Exiles | Given EX-Vault access code 839 | -9/Exiles | Opened EX-Vault 844 | -9/Exiles | Found Flying Fortress v7 857 | -9/Exiles | Warned to stay clear of 0b10 Research branches 863 | -9/Exiles | Exiles lab attacked by MAIN.C 937 | -9/Exiles | Discovered new exit (range 10) 947 | -9/Exiles | Left Exiles lab with Flying Fortress v7 947 | -9/Exiles | Entered Mines 964 | -8/Mines | Discovered new exit (range 11) 972 | -8/Mines | Entered Materials 972 | -8/Materials | Evolved 2 slots: Propulsion x2 973 | -8/Materials | Identified exit to Factory 1047 | -8/Materials | Garrison activated, responded to threat 1112 | -8/Materials | Repaired Broken Imp. Ion Engine 1129 | -8/Materials | Entered Factory 1129 | -7/Factory | Evolved 2 slots: Utility x2 1172 | -7/Factory | Repaired Lgt. Assault Rifle 1313 | -7/Factory | Discovered new exit (range 13) 1570 | -7/Factory | Build established: Scout 1950 | -7/Factory | Found Prototype Launcher 2263 | -7/Factory | Discovered new exit (range 15) 2272 | -7/Factory | Build established: Gladiator 2354 | -7/Factory | Identified exit to Factory 2467 | -7/Factory | Identified Rocket Array 2651 | -7/Factory | Entered another Factory area 2651 | -6/Factory | Evolved 2 slots: Utility x2 2656 | -6/Factory | Build established: Mutant 2965 | -6/Factory | Build established: Hacker-Mutant 3009 | -6/Factory | Identified exit to Factory 3049 | -6/Factory | Discovered new exit (range 12) 3067 | -6/Factory | Central database locked down 3070 | -6/Factory | Entered another Factory area 3070 | -5/Factory | Evolved 2 slots: Utility x2 3273 | -5/Factory | Identified exit to Factory 3528 | -5/Factory | Entered another Factory area 3528 | -4/Factory | Evolved 2 slots: Power x1, Utility x1 3596 | -4/Factory | Discovered new exit (range 4) 3741 | -4/Factory | Spotted B-86 Titan 3789 | -4/Factory | Entered Research 3789 | -3/Research | Evolved 2 slots: Utility x2 3790 | -3/Research | Identified exit to DSF 3790 | -3/Research | Entered DSF 3811 | -3/DSF | Found Prototype Hackware 3813 | -3/DSF | Found Prototype Hackware 3815 | -3/DSF | Found Prototype Hackware 3816 | -3/DSF | Found Prototype Hackware 3818 | -3/DSF | Additional patrols routed to DSF 3828 | -3/DSF | Discovered new exit (range 16) 3839 | -3/DSF | Identified Exp. Hacking Suite (x4) 3843 | -3/DSF | Entered Research 3843 | -2/Research | Evolved 2 slots: Propulsion x2 4069 | -2/Research | Repaired Mic. Nuclear Core 4153 | -2/Research | Discovered new exit (range 5) 4161 | -2/Research | Identified exit to Testing 4221 | -2/Research | Lost 19 parts (2p8n8u1w) 4265 | -2/Research | Core integrity fell below 50% 4296 | -2/Research | Fabricated Gui. Micro-nuke Launcher? 4325 | -2/Research | Discovered new exit (range 6) 4327 | -2/Research | Entered Access 4327 | -1/Access | Evolved 2 slots: Utility x2 4357 | -1/Access | Lost 3 parts (1n2u) 4567 | -1/Access | Lost 5 parts (1n4u) 4641 | -1/Access | System corruption reached 10% 4836 | -1/Access | Spotted B-99 Colossus 4842 | -1/Access | Identified exit to Surface 5044 | -1/Access | Core integrity fell below 50% 5068 | -1/Access | Core integrity fell below 20% 5093 | -1/Access | Destroyed by P-80 Master with Gamma Rifle Last Messages --------------- 05053_ System corrupted: Energy discharge (-17). 05054_ Dropped Broken ECM Suite. 05055_ Field Propulsion Drive+ destroyed. 05056_ Acquired Graphene Brace. 05058_ Dropped Faulty Imp. Q-thruster. 05061_ Acquired Hvy. Disruptor Cannon. 05061_ Chain reaction triggered in Lgt. Antimatter Reactor. 05061_ S-43 Plague destroyed. 05062_ Dropped Mic. Antimatter Reactor. 05063_ P-80 Master resets S-43 Plague, system corruption cleaned. 05064_ Slug penetrates P-80 Master. 05064_ P-80 Master destroyed. 05064_ Slug penetrates S-43 Plague. 05066_ Armor Integrity Analyzer destroyed. 05067_ P-80 Master resets S-43 Plague, system corruption cleaned. 05067_ Slug penetrates Wall. 05077_ Imp. Targeting Computer destroyed. 05085_ System corrupted: Matter fused (-7). 05087_ Door malfunctions. 05092_ Slammed into S-43 Plague. Map ----- +----------------------------------------------------+ | ??????????????????????????????# """"" # | | ??????????????????????????????# # | | ??????????????????????????????# # | | ??????????????????????????????#################### | | ?????????????????????????????????????????# | | ?????????????????????????????????????????# | | ?????????????????????????????????????????# | | ?????????????????????????????????????????# | | ?????????????????????????????????????????# | | ?????????????????????????????????????????# | | ?????????????????????????????????????????######### | | ?????????????????????????????????????????????????? | | ?????????????????????????????????????????????????? | | ?????????????????????????????????????????????????? | | ????????????????????????H????????????????????????? | | ?????????????????????????????????????????????????? | | ??????????????????????###########????????????????? | | ??????????????????????# #????????????????? | | ??????????????????????# #????????????????? | | ??????????????????????# #????????????????? | | ??????????????????????# " #????????????????? | | ??????????????????????# """ #????????????????? | | ??????????????????????#] """ #????????????????? | | ??????????????????????# " #????????????????? | | ??????????????????????# s #????????????????? | | ??????????????????????# @ #????????????????? | | ??????????????????????###/#######????????????????? | | ??????????????????????# #############+####????? | | ??????????????????????# p ! p + ? | | ??????????????????????# #???????? | | ??????????????????????# ###################???? | | ??????????????????????## g### # ]*= #?##+ | | ???????????????????????#g #?# " ] #?# | | ???????????????????????#gp#?# " #?# | | ???????????????????????# p#?# " %% #?# | | ???????????????????????# #?# "" ""[[=##?# | | ???????????????????????#g #?# "" "|%= ##?# | | ??????????????????????##g ### """" ""[" #?# | | ??????# ###+########## ## """" #" "##### | | ??????? T" ## """" ## | | ??????? " ## """" ## | | ???????+############### ## """" ## ####### | | ??????????????????????## ### "" ## #?????? | | ???????????????????????# #?# ## #?????? | | ???????????????????????# #?# ## #?????? | | ???????????????????????# #?# ## #?????? | | ???????????????????????# ##########+### #????? | | ???????????????????????# #????? | | ???????????????????????# | | ???????????????????????######/########## ###### | +----------------------------------------------------+ Best States ------------- Heat Dissipation 52 Energy Generation 29 Energy Capacity 265 Matter Stores 300 Matter Capacity 300 Sight Range 22 Robot Scan Range 16 Terrain Scan Density 10 ECM Strength 1 Jamming Range 14 Armor Coverage 375 Resistance: EM 15 Evasion (%) 74 Targeting Accuracy 12 Melee Accuracy 6 Target Analysis 12 Core Analysis 6 Armor Integrity Analysis 30 Recoil Reduction 4 Salvage Targeting 2 Offensive Hacking 100 Defensive Hacking 20 Item Schematics ----------------- None Robot Schematics ------------------ None Fabricated ------------ Gui. Micro-nuke Launcher | x1 | -2/Research | Preloaded Repaired ---------- Imp. Ion Engine | 50% | -8/Materials | Broken Lgt. Assault Rifle | 71% | -7/Factory Mic. Nuclear Core | 14% | -2/Research Studied --------- Field Propulsion Drive | -5/Factory | Hacked Xenon Bombardment Thruster | -5/Factory | Hacked Alien Tech Used ----------------- None Achievements -------------- Not Today, Chutes Challenges ------------ None Game ------ Seed NovaSixSegregator Manual? 0 Play Time 01:18:31 Cumulative 205.2 hours Start 2026.04.13 @ 18:39:53 End 2026.04.13 @ 19:55:23 Sessions 1 Manual Loads 0 Difficulty Rogue Special Mode None Game No. 132 Rogue 128 Adventurer 4 Explorer 0 Win Type - Total 35 Types 34/0/1/0/0/0/0/0/0/0 Lore% 85 Gallery% 62 Achievement% 57 Wizard Run 0 Options --------- Layout 0 ASCII 0 Keyboard 1 Movement Vi Keybinds 0 Fullscreen 2 Font 18/SmallcapsGlow Map View 76x50 Zoom Use 0% Tactical HUD 1 Map Filters NONE Filters NONE Steam 1 RUN: 898c3c05-b82b-4c8b-970f-411933338888